bitfinex-derivatives/quotes_SOLF0:USTF0_20240827
["timestamp","ask_amount","ask_price","bid_price","bid_amount"]
[1724731245384,0.04424046,158.5,158.48,3.1541]
[1724731245890,0.04424046,158.5,158.46,0.04459095]
[1724731247278,0.04424046,158.5,158.47,3.1543]
[1724731248083,0.04424046,158.5,158.46,0.04459095]
[1724731248795,0.04424046,158.5,158.47,3.1543]
[1724731250686,0.04424046,158.5,158.48,3.1541]
[1724731253400,0.04424046,158.5,158.49,22.5239]
[1724731255886,3.795,158.58,158.49,19.37]
[1724731256085,3.795,158.58,158.48,3.07567678]
[1724731256086,3.795,158.58,158.52,19.37]
[1724731256292,3.1524,158.57,158.53,3.153]
[1724731256494,3.1524,158.57,158.52,19.37]
[1724731256892,0.04339743,158.56,158.53,0.04847981]
[1724731257587,3.19609743,158.56,158.53,0.04847981]
[1724731257792,0.04339743,158.56,158.53,0.04847981]
[1724731257986,3.1529,158.55,158.53,0.04847981]
[1724731258390,0.04339743,158.56,158.47,19.37]
[1724731258391,19.41339743,158.56,158.47,19.37]
[1724731258594,3.1532,158.53,158.48,3.8]
[1724731259501,0.04390895,158.52,158.49,3.19604213]
[1724731259798,0.04390895,158.52,158.49,0.04214213]
[1724731260990,0.04390895,158.52,158.5,3.1535]
[1724731261695,0.04390895,158.52,158.49,19.41214213]
[1724731262394,0.04390895,158.52,158.5,3.1537]
[1724731262601,0.04390895,158.52,158.49,19.41214213]
[1724731262903,0.04390895,158.52,158.51,22.5235]
[1724731274096,0.04390895,158.52,158.51,10.9035]
[1724731279701,4.426,158.58,158.54,3.1529]
[1724731279905,1.2738,158.58,158.55,7.75]
[1724731280512,4.4259,158.58,158.55,7.75]
[1724731280715,4.46913787,158.58,158.55,7.79373122]
[1724731281606,3.19533787,158.58,158.55,10.94643122]
[1724731287314,0.04323787,158.58,158.55,10.94643122]
[1724731288312,3.19533787,158.58,158.55,10.94643122]
[1724731290012,0.04323787,158.58,158.57,7.75]
[1724731290620,0.04323787,158.58,158.57,10.9023]
[1724731302728,3.1513,158.63,158.58,3.1521]
[1724731302920,3.1513,158.63,158.6,7.75]
[1724731303620,3.151,158.64,158.6,7.75]
[1724731303827,0.04757536,158.63,158.6,7.79816654]
[1724731304016,0.04757536,158.63,158.62,7.75]
[1724731308334,0.04757536,158.63,158.61,3.1514]
[1724731308536,0.04757536,158.63,158.61,10.9014]
[1724731315844,0.04757536,158.63,158.62,7.75]
[1724731320645,3.1513,158.62,158.6,0.04816654]
[1724731321447,3.1515,158.61,158.6,0.04816654]
[1724731321851,1.2018,158.65,158.5,1.2569]
[1724731321852,7.75,158.59,158.5,1.2569]
[1724731322051,3.1522,158.58,158.54,3.1528]
[1724731322251,3.1522,158.58,158.53,7.75]
[1724731322759,3.19494974,158.57,158.54,0.04790619]
[1724731323059,0.04264974,158.57,158.54,0.04790619]
[1724731323254,3.1527,158.55,158.54,0.04790619]
[1724731323759,7.75,158.55,158.45,2.5001]
[1724731323951,2.4817,158.58,158.47,7.75]
[1724731323952,7.75,158.54,158.47,7.75]
[1724731324153,7.75,158.54,158.49,3.1539]
[1724731324662,3.1533,158.53,158.47,11.49]
[1724731324848,0.04355089,158.52,158.48,3.20052923]
[1724731325048,0.04355089,158.52,158.48,0.04642923]
[1724731325049,3.1536,158.51,158.48,0.04642923]
[1724731325452,7.75,158.51,158.48,0.04642923]
[1724731325661,7.75,158.49,158.48,0.04642923]
[1724731325859,7.75,158.49,158.42,72.89486154]
[1724731325860,7.75,158.49,158.42,65.14486154]
[1724731326963,0.04799399,158.47,158.44,0.04758968]
[1724731327364,3.20249399,158.47,158.44,0.04758968]
[1724731327658,0.04799399,158.47,158.45,7.75]
[1724731330364,0.04799399,158.47,158.45,10.9047]
[1724731330562,0.04799399,158.47,158.45,7.75]
[1724731331359,0.04799399,158.47,158.46,3.1545]
[1724731334469,0.04799399,158.47,158.45,10.9047]
[1724731335770,0.04799399,158.47,158.46,3.1545]
[1724731335974,0.04799399,158.47,158.46,10.9045]
[1724731342873,0.04799399,158.47,158.46,3.1545]
[1724731348383,0.04799399,158.47,158.45,3.1547]
[1724731349182,0.04799399,158.47,158.44,3.20248968]
[1724731349884,0.04799399,158.47,158.45,3.1547]
[1724731350278,3.20229399,158.47,158.44,0.04758968]
[1724731350486,0.04799399,158.47,158.44,0.04758968]
[1724731351385,0.04799399,158.47,158.44,3.20238968]
[1724731351990,0.04799399,158.47,158.44,10.95238968]
[1724731352182,0.04799399,158.47,158.45,3.1547]
[1724731352488,0.04799399,158.47,158.44,0.04758968]
[1724731352879,0.04799399,158.47,158.44,3.20238968]
[1724731362901,0.04799399,158.47,158.45,3.1547]
[1724731363400,0.04799399,158.47,158.46,3.1545]
[1724731364501,0.04799399,158.47,158.45,3.1547]
[1724731366201,0.04799399,158.47,158.44,3.20248968]
[1724731367206,3.20229399,158.47,158.44,3.20248968]
[1724731367606,0.04799399,158.47,158.44,3.20248968]
[1724731369910,7.75,158.46,158.44,0.04758968]
[1724731371204,3.20239399,158.47,158.44,3.20248968]
[1724731372218,3.20239399,158.47,158.44,0.04758968]
[1724731372510,3.1547,158.45,158.44,0.04758968]
[1724731373108,3.1552,158.43,158.36,7.75]
[1724731373416,10.9052,158.43,158.36,7.75]
[1724731373619,10.9052,158.43,158.39,3.1558]
[1724731373916,10.9052,158.43,158.36,7.75]
[1724731374314,0.04167093,158.41,158.38,0.04763556]
[1724731374611,0.04167093,158.41,158.39,3.1558]
[1724731375911,0.04167093,158.41,158.4,3.1557]
[1724731388131,0.04167093,158.41,158.4,6.24048374]
[1724731388822,0.04167093,158.41,158.38,0.04763556]
[1724731388823,7.79167093,158.41,158.38,0.04763556]
[1724731389724,10.94717093,158.41,158.38,0.04763556]
[1724731391129,7.79167093,158.41,158.38,0.04763556]
[1724731391319,7.75,158.39,158.38,0.04763556]
[1724731391728,10.9059,158.39,158.38,0.04763556]
[1724731392123,10.9059,158.39,158.32,3.74]
[1724731392328,3.1565,158.36,158.3,11.49]
[1724731392718,3.1565,158.36,158.3,7.75]
[1724731393427,0.04186158,158.35,158.32,3.1571]
[1724731394423,0.04186158,158.35,158.33,3.1571]
[1724731394633,0.04186158,158.35,158.31,7.79736034]
[1724731396129,0.04186158,158.35,158.31,10.95753118]
[1724731396625,0.04186158,158.35,158.31,7.79736034]
[1724731397426,0.04186158,158.35,158.33,3.157]
[1724731398319,0.04186158,158.35,158.34,3.1569]
[1724731409231,0.04186158,158.35,158.31,3.20466034]
[1724731410733,0.04186158,158.35,158.32,3.1573]
[1724731412928,0.04186158,158.35,158.31,0.04736034]
[1724731414029,0.04186158,158.35,158.32,3.1572]
[1724731414838,0.04186158,158.35,158.33,3.157]
[1724731415030,0.04186158,158.35,158.31,7.79736034]
[1724731415428,0.04186158,158.35,158.32,7.75]
[1724731415938,0.04186158,158.35,158.33,3.1571]
[1724731417435,3.74,158.4,158.31,0.04736034]
[1724731417641,6.3025,158.44,158.34,7.75]
[1724731417939,7.75,158.41,158.34,10.92733374]
[1724731418536,0.04407856,158.39,158.37,3.1562]
[1724731420543,0.04407856,158.39,158.38,3.1561]
[1724731425638,0.04407856,158.39,158.38,10.9061]
[1724731427545,0.04407856,158.39,158.38,3.1561]
[1724731428841,0.04407856,158.39,158.38,10.9061]
[1724731435253,0.04407856,158.39,158.38,3.1561]
[1724731435453,0.04407856,158.39,158.38,10.9061]
[1724731437652,2.5066,158.48,158.44,3.1548]
[1724731437653,1.2419,158.48,158.44,3.1548]
[1724731438551,1.28949179,158.48,158.44,3.19461873]
[1724731439759,0.04759179,158.48,158.44,3.19461873]
[1724731439953,0.04759179,158.48,158.45,3.1547]
[1724731441453,0.04759179,158.48,158.45,7.75]
[1724731441847,0.04759179,158.48,158.44,0.03981873]
[1724731442056,0.04759179,158.48,158.44,7.78981873]
[1724731442651,0.04759179,158.48,158.45,3.1547]
[1724731443854,0.04759179,158.48,158.46,3.1545]
[1724731444756,0.04759179,158.48,158.46,10.9045]
[1724731445153,0.04759179,158.48,158.47,3.1543]
[1724731448551,0.04759179,158.48,158.47,10.9043]
[1724731467173,0.04759179,158.48,158.47,3.1543]
[1724731467374,0.04759179,158.48,158.47,10.9043]
[1724731472871,0.04759179,158.48,158.44,0.03981873]
[1724731473177,7.79759179,158.48,158.44,0.03981873]
[1724731473378,3.1544,158.47,158.44,0.03981873]
[1724731474377,3.1545,158.46,158.44,0.03981873]
[1724731474584,7.75,158.45,158.44,0.03981873]
[1724731474879,7.75,158.45,158.37,7.75]
[1724731475074,7.75,158.45,158.37,11.47]
[1724731475276,3.1549,158.44,158.39,64.2623978]
[1724731475581,7.75,158.45,158.39,61.1065978]
[1724731475782,0.0418142,158.44,158.4,0.04852254]
[1724731476280,0.0418142,158.44,158.4,3.20422254]
[1724731479877,0.0418142,158.44,158.41,3.1555]
[1724731483085,0.0418142,158.44,158.42,3.1553]
[1724731483281,0.0418142,158.44,158.42,10.9053]
[1724731483787,0.0418142,158.44,158.43,3.1551]
[1724731485176,0.0418142,158.44,158.43,10.9051]
[1724731502802,0.0418142,158.44,158.43,3.1551]
[1724731503000,0.0418142,158.44,158.42,3.1551]
[1724731503201,0.0418142,158.44,158.4,11.51852254]
[1724731504311,0.0418142,158.44,158.41,3.1555]
[1724731505408,0.0418142,158.44,158.4,0.04852254]
[1724731505599,7.7918142,158.44,158.4,0.04852254]
[1724731505907,7.75,158.42,158.4,0.04852254]
[1724731506403,7.75,158.41,158.34,3.72]
[1724731506602,7.75,158.39,158.32,3.72]
[1724731506801,9.43693717,158.43,158.32,3.72]
[1724731506802,9.43693717,158.43,158.33,7.75]
[1724731507009,3.156,158.39,158.33,10.907]
[1724731507309,0.04586208,158.38,158.34,0.04715923]
[1724731507506,3.20206208,158.38,158.34,0.04715923]
[1724731511815,0.04586208,158.38,158.34,0.04715923]
[1724731512318,0.04586208,158.38,158.35,3.1567]
[1724731512910,0.04586208,158.38,158.34,3.20405923]
[1724731513711,0.04586208,158.38,158.34,0.04715923]
[1724731513913,0.04586208,158.38,158.35,3.1567]
[1724731521216,0.04586208,158.38,158.34,0.04715923]
[1724731521417,3.20206208,158.38,158.34,3.20395923]
[1724731522233,10.9065,158.37,158.34,0.04715923]
[1724731524125,0.04586208,158.38,158.35,3.1567]
[1724731525227,3.20206208,158.38,158.34,3.20405923]
[1724731531431,0.04586208,158.38,158.35,3.1566]
[1724731533029,0.04586208,158.38,158.34,0.04715923]
[1724731533834,7.79586208,158.38,158.34,0.04715923]
[1724731534037,7.75,158.36,158.34,0.04715923]
[1724731544537,10.9066,158.36,158.34,0.04715923]
[1724731550142,7.75,158.35,158.34,0.04715923]
[1724731550643,10.9067,158.35,158.34,0.04715923]
[1724731551241,14.04583458,158.35,158.34,0.04715923]
[1724731551445,10.88913458,158.35,158.28,3.1581]
[1724731551645,7.75,158.31,158.28,3.1581]
[1724731552046,7.75,158.31,158.29,3.1579]
[1724731552943,7.75,158.31,158.28,3.19892148]
[1724731554349,10.95402793,158.32,158.28,3.19892148]
[1724731554746,7.79652793,158.32,158.28,3.19892148]
[1724731555052,0.04652793,158.32,158.29,3.1579]
[1724731556349,1.197,158.36,158.28,0.04092148]
[1724731556350,3.72,158.42,158.28,0.04092148]
[1724731556557,7.75,158.37,158.3,3.72]
[1724731556849,7.75,158.35,158.3,3.72]
[1724731557045,7.75,158.38,158.32,7.75]
[1724731557251,7.75,158.38,158.3,11.47]
[1724731557444,7.79206466,158.36,158.32,3.19869839]
[1724731558252,0.04206466,158.36,158.32,7.79139839]
[1724731559151,0.04206466,158.36,158.33,7.75]
[1724731559452,0.04206466,158.36,158.33,10.907]
[1724731560748,0.04206466,158.36,158.34,3.1569]
[1724731561252,0.04206466,158.36,158.33,7.75]
[1724731561550,0.04206466,158.36,158.35,7.75]
[1724731562456,0.04206466,158.36,158.35,10.9067]
[1724731563756,0.04206466,158.36,158.35,14.6267]
[1724731563951,0.04206466,158.36,158.35,17.7163217]
[1724731564160,0.04206466,158.36,158.35,14.6267]
[1724731564461,0.04206466,158.36,158.35,17.71660397]
[1724731565753,10.9051,158.43,158.37,3.1563]
[1724731565952,10.9051,158.43,158.37,10.9063]
[1724731566147,10.9051,158.43,158.37,7.75]
[1724731566758,0.04407226,158.42,158.38,0.04706671]
[1724731567256,7.75,158.4,158.38,0.04706671]
[1724731573764,7.75,158.39,158.38,0.04706671]
[1724731574155,7.75,158.39,158.33,3.1571]
[1724731574156,3.1562,158.38,158.33,3.1571]
[1724731574359,7.75,158.36,158.33,3.1571]
[1724731575362,0.04552344,158.36,158.33,3.20474826]
[1724731577457,7.79552344,158.36,158.33,3.20474826]
[1724731579062,10.95202344,158.36,158.33,0.04764826]
[1724731580555,7.79552344,158.36,158.33,3.20474826]
[1724731583065,7.79552344,158.36,158.33,0.04764826]
[1724731583762,10.95212344,158.36,158.33,0.04764826]
[1724731585161,10.9068,158.35,158.33,0.04764826]
[1724731586961,10.95212344,158.36,158.33,0.04764826]
[1724731588670,3.1567,158.35,158.33,0.04764826]
[1724731591563,10.9067,158.35,158.33,0.04764826]
[1724731592166,7.75,158.35,158.33,0.04764826]
[1724731593667,3.20212344,158.36,158.33,0.04764826]
[1724731597574,3.20212344,158.36,158.33,3.20474826]
[1724731599874,0.04552344,158.36,158.34,3.1568]
[1724731605986,10.95202344,158.36,158.33,3.20474826]
[1724731610682,10.95202344,158.36,158.33,0.04764826]
[1724731612999,3.20202344,158.36,158.33,0.04764826]
[1724731613293,7.75,158.35,158.33,0.04764826]
[1724731614487,3.20202344,158.36,158.33,0.04764826]
[1724731616797,0.04552344,158.36,158.33,0.04764826]
[1724731617001,1.2461,158.44,158.35,7.75]
[1724731617298,1.2461,158.44,158.34,6.28370388]
[1724731617299,1.3062,158.46,158.39,7.75]
[1724731617503,3.1549,158.44,158.39,7.75]
[1724731617802,7.75,158.45,158.39,7.75]
[1724731618001,10.9049,158.45,158.39,7.75]
[1724731618202,0.04634,158.44,158.4,0.04744191]
[1724731622595,0.04634,158.44,158.4,3.20314191]
[1724731622998,0.04634,158.44,158.4,10.95314191]
[1724731624207,0.04634,158.44,158.41,3.1555]
[1724731625701,0.04634,158.44,158.42,3.1553]
[1724731625902,0.04634,158.44,158.42,10.9053]
[1724731626107,0.04634,158.44,158.42,3.1553]
[1724731634112,0.04634,158.44,158.41,3.1555]
[1724731634307,7.79634,158.44,158.4,3.76744191]
[1724731634712,7.79634,158.44,158.4,6.92304191]
[1724731635219,7.79634,158.44,158.4,3.20304191]
[1724731638108,7.75,158.42,158.4,0.04744191]
[1724731639613,7.75,158.41,158.4,0.04744191]
[1724731640012,10.9055,158.41,158.4,0.04744191]
[1724731648623,3.1553,158.43,158.4,0.04744191]
[1724731648814,7.75,158.43,158.4,0.04744191]
[1724731651426,3.1554,158.42,158.4,0.04744191]
[1724731654530,10.9053,158.43,158.4,0.04744191]
[1724731654730,3.84554,158.44,158.4,3.20314191]
[1724731654731,0.04634,158.44,158.4,3.20314191]
[1724731655129,3.1552,158.43,158.4,3.20314191]
[1724731659826,3.20134,158.44,158.4,3.20314191]
[1724731660031,0.04634,158.44,158.42,7.75]
[1724731660334,0.04634,158.44,158.43,7.75]
[1724731660632,3.1538,158.5,158.43,7.75]
[1724731660821,3.1538,158.5,158.45,7.75]
[1724731661634,0.04325028,158.49,158.46,0.04489313]
[1724731662430,0.04325028,158.49,158.46,3.19939313]
[1724731667236,0.04325028,158.49,158.46,7.79489313]
[1724731668738,0.04325028,158.49,158.47,3.1543]
[1724731670339,0.04325028,158.49,158.48,3.1541]
[1724731678142,0.04325028,158.49,158.48,10.9041]
[1724731683640,0.04325028,158.49,158.46,1.34979313]
[1724731683641,0.04325028,158.49,158.46,0.04489313]
[1724731683846,7.79325028,158.49,158.46,0.04489313]
[1724731684843,3.1543,158.48,158.46,0.04489313]
[1724731685450,3.1543,158.47,158.46,0.04489313]
[1724731686356,10.9043,158.47,158.46,0.04489313]
[1724731686652,7.75,158.47,158.4,3.8]
[1724731686849,7.75,158.44,158.4,3.8]
[1724731687447,7.79626991,158.44,158.41,3.1554]
[1724731691859,0.04626991,158.44,158.41,3.1554]
[1724731692358,0.04626991,158.44,158.42,3.1553]
[1724731693258,0.04626991,158.44,158.41,3.1555]
[1724731693461,0.04626991,158.44,158.4,3.84426447]
[1724731693757,3.20126991,158.44,158.4,6.99986447]
[1724731695358,3.20126991,158.44,158.4,3.19986447]
[1724731696759,1.2105,158.51,158.42,7.75]
[1724731696964,1.2105,158.51,158.43,3.8]
[1724731697167,1.2105,158.51,158.45,7.75]
[1724731697366,8.9605,158.51,158.45,7.75]
[1724731697760,0.04793167,158.5,158.46,0.04189708]
[1724731697953,3.20183167,158.5,158.46,0.04189708]
[1724731698260,0.04793167,158.5,158.46,0.04189708]
[1724731698461,0.04793167,158.5,158.47,7.75]
[1724731701063,0.04793167,158.5,158.46,0.04189708]
[1724731701260,7.79793167,158.5,158.46,0.04189708]
[1724731701666,3.154,158.49,158.46,0.04189708]
[1724731701866,7.79793167,158.5,158.46,0.04189708]
[1724731702169,0.04793167,158.5,158.46,0.04189708]
[1724731702565,3.20183167,158.5,158.46,0.04189708]
[1724731710664,3.20183167,158.5,158.46,3.19639708]
[1724731710967,3.20183167,158.5,158.46,10.94639708]
[1724731717375,3.20183167,158.5,158.46,3.19639708]
[1724731723993,3.20183167,158.5,158.47,7.75]
[1724731724396,0.04793167,158.5,158.47,7.75]
[1724731724891,0.04793167,158.5,158.48,7.75]
[1724731725496,0.04793167,158.5,158.49,3.1539]
[1724731726094,0.04793167,158.5,158.48,10.9041]
[1724731730497,0.04793167,158.5,158.48,3.1541]
[1724731732601,0.04793167,158.5,158.49,10.9039]
[1724731740402,0.04793167,158.5,158.49,7.75]
[1724731743099,0.04793167,158.5,158.48,3.1541]
[1724731752412,0.04793167,158.5,158.49,7.75]
[1724731753109,0.04793167,158.5,158.49,10.9039]
[1724731758015,3.1525,158.57,158.52,3.1533]
[1724731758207,7.75,158.61,158.53,7.75]
[1724731758609,7.75,158.61,158.53,10.903]
[1724731759119,0.04530005,158.59,158.55,0.04690392]
[1724731760120,1.35870005,158.59,158.55,0.04690392]
[1724731760312,3.1525,158.57,158.55,0.04690392]
[1724731760513,7.75,158.57,158.55,0.04690392]
[1724731760918,3.1525,158.56,158.55,0.04690392]
[1724731762317,3.1524,158.57,158.55,0.04690392]
[1724731763922,1.35870005,158.59,158.55,10.94960392]
[1724731764828,4.51080005,158.59,158.55,10.94960392]
[1724731765019,3.19740005,158.59,158.55,10.94960392]
[1724731766718,3.19740005,158.59,158.56,3.1525]
[1724731767123,3.19740005,158.59,158.56,10.9025]
[1724731767318,0.04530005,158.59,158.57,3.1522]
[1724731767520,0.04530005,158.59,158.58,7.75]
[1724731768020,0.04530005,158.59,158.58,10.9021]
[1724731770430,0.04530005,158.59,158.58,7.75]
[1724731775135,3.1524,158.57,158.55,0.04690392]
[1724731775343,0.04530005,158.59,158.55,0.04690392]
[1724731775344,7.75,158.58,158.55,0.04690392]
[1724731775631,7.75,158.56,158.55,0.04690392]
[1724731775837,7.75,158.56,158.49,3.8]
[1724731776028,7.75,158.54,158.49,3.8]
[1724731776733,0.04041534,158.53,158.5,0.04435327]
[1724731782536,0.04041534,158.53,158.5,3.19805327]
[1724731787750,7.79041534,158.53,158.5,0.04435327]
[1724731788743,3.1535,158.52,158.5,0.04435327]
[1724731796957,3.1535,158.51,158.5,0.04435327]
[1724731798157,10.9035,158.51,158.5,0.04435327]
[1724731819574,3.1535,158.51,158.5,0.04435327]
[1724731820262,0.04041534,158.53,158.5,0.04435327]
[1724731821455,0.04041534,158.53,158.51,3.1534]
[1724731821958,3.19361534,158.53,158.5,3.19805327]
[1724731822164,10.94361534,158.53,158.5,0.04435327]
[1724731822465,10.9035,158.51,158.5,0.04435327]
[1724731825971,7.75,158.51,158.5,0.04435327]
[1724731829267,10.9035,158.51,158.5,0.04435327]
[1724731832975,7.75,158.51,158.5,0.04435327]
[1724731834677,0.04041534,158.53,158.5,7.79435327]
[1724731834868,0.04041534,158.53,158.51,7.75]
[1724731835773,0.04041534,158.53,158.52,3.1533]
[1724731846184,0.04041534,158.53,158.52,6.9133]
[1724731856386,3.152,158.59,158.55,3.1527]
[1724731856590,3.152,158.59,158.56,7.75]
[1724731857390,3.19926562,158.59,158.56,7.79351989]
[1724731858684,3.19926562,158.59,158.56,10.94601989]
[1724731860495,0.04726562,158.59,158.56,10.94601989]
[1724731860996,55.90974114,158.66,158.57,7.75]
[1724731861196,7.75,158.62,158.54,1.3003]
[1724731861393,3.152,158.59,158.54,9.0503]
[1724731861589,3.152,158.59,158.54,12.7903]
[1724731861795,0.0411243,158.58,158.55,0.04351593]
[1724731862384,0.0411243,158.58,158.56,3.1525]
[1724731865096,3.1933243,158.58,158.55,0.04351593]
[1724731865701,3.1933243,158.58,158.55,3.19621593]
[1724731869996,3.1933243,158.58,158.56,10.9025]
[1724731869997,0.0411243,158.58,158.56,10.9025]
[1724731871092,0.0411243,158.58,158.57,3.1523]
[1724731875995,0.0411243,158.58,158.57,10.9023]
[1724731892419,3.1511,158.64,158.59,3.1518]
[1724731892619,3.1511,158.64,158.6,7.75]
[1724731893315,3.19523777,158.64,158.6,7.79780433]
[1724731893917,0.04413777,158.64,158.63,7.75]
[1724731894424,0.04413777,158.64,158.63,10.9012]
[1724731894616,0.04413777,158.64,158.63,7.75]
[1724731896318,0.04413777,158.64,158.63,10.9012]
[1724731901320,3.1498,158.7,158.65,3.1506]
[1724731901522,3.1498,158.7,158.66,7.75]
[1724731902520,3.18967219,158.7,158.66,7.79417002]
[1724731903129,3.18967219,158.7,158.66,10.94467002]
[1724731903831,3.15,158.69,158.66,10.94467002]
[1724731911940,3.1502,158.68,158.66,0.04417002]
[1724731912130,7.75,158.69,158.66,0.04417002]
[1724731912531,9.0241,158.69,158.66,0.04417002]
[1724731912737,3.1504,158.67,158.66,0.04417002]
[1724731918147,3.1502,158.68,158.66,0.04417002]
[1724731920239,3.15,158.69,158.66,0.04417002]
[1724731921647,3.15,158.69,158.66,10.94467002]
[1724731923743,3.18967219,158.7,158.66,10.94467002]
[1724731924351,0.03987219,158.7,158.69,10.9]
[1724731928254,0.03987219,158.7,158.69,7.75]
[1724731928454,0.03987219,158.7,158.68,10.9001]
[1724731931457,0.03987219,158.7,158.66,0.04417002]
[1724731931654,7.78987219,158.7,158.66,0.04417002]
[1724731932356,7.75,158.69,158.66,0.04417002]
[1724731933057,3.1504,158.67,158.66,0.04417002]
[1724731933849,3.151,158.64,158.6,3.72]
[1724731934054,7.75,158.65,158.6,3.72]
[1724731934359,7.75,158.65,158.61,3.1514]
[1724731934360,3.1508,158.65,158.61,3.1514]
[1724731934847,3.19714462,158.65,158.61,3.19460681]
[1724731940863,3.19714462,158.65,158.62,7.75]
[1724731941062,3.19714462,158.65,158.62,10.9013]
[1724731941562,3.19714462,158.65,158.63,7.75]
[1724731944864,0.04634462,158.65,158.63,10.9011]
[1724731954579,0.04634462,158.65,158.64,3.151]
[1724731954771,0.04634462,158.65,158.64,10.901]
[1724731962571,0.04634462,158.65,158.63,3.72]
[1724731963575,3.19724462,158.65,158.61,3.19470681]
[1724731966474,3.19724462,158.65,158.62,10.9013]
[1724731968072,3.19724462,158.65,158.62,7.75]
[1724731969283,3.19724462,158.65,158.61,3.19470681]
[1724731969284,0.04634462,158.65,158.61,0.04320681]
[1724731969478,7.75,158.62,158.53,3.7229]
[1724731969785,7.75,158.6,158.54,6.80670208]
[1724731969974,7.75,158.6,158.55,3.08670208]
[1724731969975,3.1523,158.58,158.55,3.08670208]
[1724731970277,7.75,158.6,158.54,3.72]
[1724731970678,7.79336524,158.59,158.55,0.04713197]
[1724731971076,3.1525,158.56,158.55,0.04713197]
[1724731973381,10.9025,158.56,158.55,0.04713197]
[1724731975084,3.1525,158.56,158.55,0.04713197]
[1724731975476,1.25,158.58,158.55,0.04713197]
[1724731975790,0.04336524,158.59,158.55,0.04713197]
[1724731976784,3.1523,158.58,158.55,0.04713197]
[1724731986986,3.1524,158.57,158.55,0.04713197]
[1724731988789,3.1525,158.56,158.55,0.04713197]
[1724731995190,10.9025,158.56,158.55,0.04713197]
[1724731996592,3.1525,158.56,158.55,0.04713197]
[1724731999900,0.04336524,158.59,158.55,7.79713197]
[1724732000099,0.04336524,158.59,158.55,0.04713197]
[1724732000500,3.19546524,158.59,158.55,10.94983197]
[1724732001397,0.04336524,158.59,158.55,0.04713197]
[1724732001605,7.75,158.57,158.55,0.04713197]
[1724732002200,3.1525,158.56,158.55,0.04713197]
[1724732006113,0.04336524,158.59,158.55,0.04713197]
[1724732007311,3.1523,158.58,158.55,0.04713197]
[1724732011504,0.04336524,158.59,158.55,0.04713197]
[1724732012011,0.04336524,158.59,158.57,7.75]
[1724732013416,0.04336524,158.59,158.57,10.9023]
[1724732014410,0.04336524,158.59,158.57,7.75]
[1724732014609,3.19536524,158.59,158.56,3.1525]
[1724732014803,3.19536524,158.59,158.55,7.79713197]
[1724732016414,3.19536524,158.59,158.55,10.94983197]
[1724732019623,3.19536524,158.59,158.55,3.19983197]
[1724732019928,3.1521,158.58,158.55,0.04713197]
[1724732021725,3.1524,158.57,158.55,0.04713197]
[1724732021927,7.75,158.57,158.55,0.04713197]
[1724732022317,7.75,158.57,158.47,72.38082813]
[1724732022521,7.75,158.52,158.47,72.38082813]
[1724732022916,3.16682157,158.54,158.47,69.22662813]
[1724732023122,7.75,158.5,158.47,69.22662813]
[1724732023327,7.79485097,158.5,158.47,69.27234645]
[1724732025033,3.1539,158.49,158.47,69.27234645]
[1724732025420,0.04485097,158.5,158.47,69.27234645]
[1724732026028,3.19865097,158.5,158.47,69.27234645]
[1724732026525,0.04485097,158.5,158.47,69.27234645]
[1724732026721,0.04485097,158.5,158.47,77.02234645]
[1724732027633,0.04485097,158.5,158.47,80.17654645]
[1724732029831,0.04485097,158.5,158.48,3.1541]
[1724732037734,3.19865097,158.5,158.47,77.02234645]
[1724732037934,3.19865097,158.5,158.47,69.27234645]
[1724732039542,3.19865097,158.5,158.47,72.42664645]
[1724732041046,0.04485097,158.5,158.47,72.42664645]
[1724732045450,0.04485097,158.5,158.48,3.1541]
[1724732045752,0.04485097,158.5,158.47,69.27234645]
[1724732045948,0.04485097,158.5,158.49,7.75]
[1724732046656,0.04485097,158.5,158.49,10.9039]
[1724732047459,0.04485097,158.5,158.49,13.99520708]
[1724732047755,0.04485097,158.5,158.49,10.9039]
[1724732048055,0.04485097,158.5,158.49,13.99508238]
[1724732048557,0.04485097,158.5,158.49,6.24508238]
[1724732048856,0.04485097,158.5,158.49,3.1539]
[1724732050254,7.79485097,158.5,158.47,0.04571832]